bitfinex/quotes_BTCUSD_20230108
["timestamp","ask_amount","ask_price","bid_price","bid_amount"]
[1673202970332,0.47048084,16946.0,16945.0,4.05516738]
[1673202970597,0.20486195,16946.0,16945.0,4.23220506]
[1673202970816,0.20486195,16946.0,16945.0,4.05516738]
[1673202972856,0.20486195,16946.0,16945.0,4.60056406]
[1673202973136,0.20486195,16946.0,16945.0,4.23220506]
[1673202973598,0.20486195,16946.0,16945.0,4.05516738]
[1673202976408,0.47048084,16946.0,16945.0,4.05516738]
[1673202978344,0.20486195,16946.0,16945.0,4.05516738]
[1673202978602,0.47048084,16946.0,16945.0,4.05516738]
[1673202978860,0.20486195,16946.0,16945.0,4.05516738]
[1673202979130,0.47048084,16946.0,16945.0,4.05516738]
[1673202980863,0.20486195,16946.0,16945.0,4.05516738]
[1673202981128,0.47048084,16946.0,16945.0,4.05516738]
[1673202984854,0.20486195,16946.0,16945.0,4.05516738]
[1673202985100,0.47048084,16946.0,16945.0,4.05516738]
[1673202986908,0.20486195,16946.0,16945.0,4.42352638]
[1673202987180,0.47048084,16946.0,16945.0,4.42352638]
[1673202987754,0.20486195,16946.0,16945.0,4.42352638]
[1673202988274,0.20486195,16946.0,16945.0,4.05516738]
[1673202988548,0.47048084,16946.0,16945.0,4.42352638]
[1673202988793,0.20486195,16946.0,16945.0,4.42352638]
[1673202989254,0.20486195,16946.0,16945.0,4.05516738]
[1673202989773,0.20486195,16946.0,16945.0,4.42352638]
[1673202990024,0.20486195,16946.0,16945.0,4.05516738]
[1673202991242,0.20486195,16946.0,16945.0,4.23220506]
[1673202993691,0.20486195,16946.0,16945.0,4.05516738]
[1673202994479,0.20486195,16946.0,16945.0,4.23220506]
[1673202995993,0.26545711,16946.0,16945.0,2.95673068]
[1673202996244,1.01603922,16946.0,16945.0,2.95673068]
[1673202996499,1.19311847,16946.0,16945.0,2.95673068]
[1673202997005,1.19311847,16946.0,16945.0,1.781932]
[1673202997270,1.83019051,16946.0,16945.0,1.781932]
[1673202997749,1.83012058,16946.0,16945.0,1.781932]
[1673202999286,1.46176158,16946.0,16945.0,1.781932]
[1673202999537,1.46176158,16946.0,16945.0,2.076992]
[1673203000773,0.82468954,16946.0,16945.0,2.076992]
[1673203001028,1.46153773,16946.0,16945.0,2.076992]
[1673203001277,0.82468954,16946.0,16945.0,2.076992]
[1673203002779,1.09025112,16946.0,16945.0,2.076992]
[1673203003273,0.64755298,16946.0,16945.0,2.076992]
[1673203003527,1.09025112,16946.0,16945.0,2.076992]
[1673203003787,0.82468954,16946.0,16945.0,2.076992]
[1673203004977,1.09019493,16946.0,16945.0,2.076992]
[1673203005492,0.64749679,16946.0,16945.0,2.076992]
[1673203006940,0.64749679,16946.0,16945.0,1.781932]
[1673203008723,1.24244241,16946.0,16945.0,1.781932]
[1673203008978,2.42465337,16946.0,16945.0,1.781932]
[1673203010544,2.42465337,16946.0,16945.0,0.09343286]
[1673203010807,2.42465337,16946.0,16945.0,1.86386486]
[1673203011021,1.46134875,16946.0,16945.0,1.86386486]
[1673203011241,0.64741369,16946.0,16945.0,1.86386486]
[1673203011492,1.09011183,16946.0,16945.0,1.86386486]
[1673203012203,0.64741369,16946.0,16945.0,1.86386486]
[1673203012450,0.64741369,16946.0,16945.0,1.86446176]
[1673203013702,0.64741369,16946.0,16945.0,1.86386486]
[1673203015739,1.09011183,16946.0,16945.0,1.86386486]
[1673203015962,0.64741369,16946.0,16945.0,1.86386486]
[1673203016218,1.09011183,16946.0,16945.0,1.86386486]
[1673203016730,0.82468954,16946.0,16945.0,1.86386486]
[1673203016973,1.09010514,16946.0,16945.0,1.86386486]
[1673203019465,0.82468954,16946.0,16945.0,1.86386486]
[1673203020475,1.4608082,16946.0,16945.0,1.86386486]
[1673203021208,0.82468954,16946.0,16945.0,1.86386486]
[1673203021457,1.09010071,16946.0,16945.0,3.15371336]
[1673203021721,0.64740257,16946.0,16945.0,3.15371336]
[1673203022801,0.8243433,16946.0,16945.0,3.15371336]
[1673203023050,0.47013112,16946.0,16945.0,3.15371336]
[1673203023327,0.8243433,16946.0,16945.0,3.15371336]
[1673203024087,0.47013112,16946.0,16945.0,3.15371336]
[1673203026445,0.82436411,16946.0,16945.0,3.15371336]
[1673203027068,0.64740257,16946.0,16945.0,3.15371336]
[1673203028319,0.64740257,16946.0,16945.0,3.15431026]
[1673203029849,0.64740257,16946.0,16945.0,3.15371336]
[1673203030444,0.64740257,16946.0,16945.0,3.15372336]
[1673203031077,1.09010071,16946.0,16945.0,3.15372336]
[1673203031429,0.82468954,16946.0,16945.0,3.15372336]
[1673203032482,1.0902236,16946.0,16945.0,3.15372336]
[1673203033032,0.82468954,16946.0,16945.0,3.15372336]
[1673203033283,1.46164823,16946.0,16945.0,3.15372336]
[1673203033544,1.46166105,16946.0,16945.0,3.15372336]
[1673203033806,0.82468954,16946.0,16945.0,3.15372336]
[1673203034047,1.46166088,16946.0,16945.0,3.15372336]
[1673203034307,0.82468954,16946.0,16945.0,3.15372336]
[1673203034546,1.0902776,16946.0,16945.0,3.15372336]
[1673203034814,0.82468954,16946.0,16945.0,3.15372336]
[1673203035059,1.46187896,16946.0,16945.0,3.15372336]
[1673203037887,1.46187896,16946.0,16945.0,3.15371336]
[1673203040015,1.46187896,16946.0,16945.0,2.85866336]
[1673203040238,1.46187896,16946.0,16945.0,3.15371336]
[1673203042110,1.46187896,16946.0,16945.0,3.14836751]
[1673203047826,1.46187896,16946.0,16945.0,2.67646162]
[1673203048079,1.46191014,16946.0,16945.0,3.14848694]
[1673203050098,1.46191014,16946.0,16945.0,2.85341694]
[1673203050324,1.46191014,16946.0,16945.0,3.14847694]
[1673203051063,1.10766678,16946.0,16945.0,3.14847694]
[1673203054302,1.10766678,16946.0,16945.0,2.38141162]
[1673203054802,1.47602578,16946.0,16945.0,2.85349891]
[1673203055055,1.10766678,16946.0,16945.0,2.85349891]
[1673203058024,1.46196256,16946.0,16945.0,2.85349891]
[1673203059334,1.46197399,16946.0,16945.0,2.85349891]
[1673203060102,1.46197399,16946.0,16945.0,3.14854891]
[1673203060919,1.46197399,16946.0,16945.0,3.44854891]
[1673203061140,0.82478457,16946.0,16945.0,3.14854891]
[1673203061663,0.82478457,16946.0,16945.0,3.44854891]
[1673203061931,1.09049585,16946.0,16945.0,3.14854891]
[1673203062253,0.82478457,16946.0,16945.0,3.14854891]
[1673203062446,0.82478457,16946.0,16945.0,3.44854891]
[1673203062447,0.6477973,16946.0,16945.0,3.44854891]
[1673203062700,0.82478457,16946.0,16945.0,3.44854891]
[1673203062974,0.64779806,16946.0,16945.0,3.44854891]
[1673203063224,1.0904962,16946.0,16945.0,3.14854891]
[1673203063443,0.64779806,16946.0,16945.0,3.44854891]
[1673203063693,1.0904962,16946.0,16945.0,3.14854891]
[1673203063927,1.4588552,16946.0,16945.0,3.14854891]
[1673203064236,1.19314357,16946.0,16945.0,3.14854891]
[1673203064774,1.82917768,16946.0,16945.0,3.14854891]
[1673203065383,1.19314357,16946.0,16945.0,3.14854891]
[1673203065632,1.82917557,16946.0,16945.0,3.14854891]
[1673203066139,1.46081657,16946.0,16945.0,3.14854891]
[1673203066411,0.82478457,16946.0,16945.0,3.14854891]
[1673203067159,1.09048153,16946.0,16945.0,3.14854891]
[1673203067408,0.64778339,16946.0,16945.0,3.14854891]
[1673203068927,1.01614239,16946.0,16945.0,3.14854891]
[1673203069181,1.19314357,16946.0,16945.0,3.14854891]
[1673203070857,1.83058327,16946.0,16945.0,3.14854891]
[1673203071361,1.83058327,16946.0,16945.0,3.14914581]
[1673203071606,1.83058327,16946.0,16945.0,3.14854891]
[1673203071850,1.83058327,16946.0,16945.0,2.85349891]
[1673203072096,1.83058327,16946.0,16945.0,3.14854891]
[1673203075121,1.83058327,16946.0,16945.0,3.14855891]
[1673203076153,1.83058327,16946.0,16945.0,3.14854891]
[1673203080771,1.83052392,16946.0,16945.0,3.14854891]
[1673203081280,1.47627606,16946.0,16945.0,3.14854891]
[1673203084355,1.47627606,16946.0,16945.0,2.85325486]
[1673203088447,1.47627606,16946.0,16945.0,2.85330441]
[1673203088972,1.47627606,16946.0,16945.0,2.38141162]
[1673203098101,1.03357792,16946.0,16945.0,2.38141162]
[1673203098357,1.47629754,16946.0,16945.0,2.38141162]
[1673203099108,1.03357792,16946.0,16945.0,2.38141162]
[1673203100339,1.47627383,16946.0,16945.0,2.38141162]
[1673203106134,1.03357792,16946.0,16945.0,2.38141162]
[1673203107412,1.47627237,16946.0,16945.0,2.38141162]
[1673203107617,1.03357792,16946.0,16945.0,2.38141162]
[1673203108363,1.4762988,16946.0,16945.0,2.38141162]
[1673203108867,1.03357792,16946.0,16945.0,2.38141162]
[1673203109111,1.47629728,16946.0,16945.0,2.38141162]
[1673203109648,1.03357792,16946.0,16945.0,2.38141162]
[1673203109853,1.47632206,16946.0,16945.0,2.38141162]
[1673203110102,1.03357792,16946.0,16945.0,2.38141162]
[1673203110590,1.47632218,16946.0,16945.0,2.38141162]
[1673203111051,1.47632218,16946.0,16945.0,2.85293506]
[1673203111309,1.47632218,16946.0,16945.0,2.38141162]
[1673203111597,1.03357792,16946.0,16945.0,2.38141162]
[1673203111840,1.47633303,16946.0,16945.0,2.38141162]
[1673203113318,1.10797403,16946.0,16945.0,2.38141162]
[1673203113567,1.10797403,16946.0,16945.0,2.8529253]
[1673203114304,1.10797403,16946.0,16945.0,3.1479853]
[1673203115508,0.66521892,16946.0,16945.0,3.1479853]
[1673203116224,1.10801136,16946.0,16945.0,3.1479853]
[1673203119478,0.66521892,16946.0,16945.0,3.1479853]
[1673203121640,0.66521892,16946.0,16945.0,3.1479953]
[1673203131442,0.66521892,16946.0,16945.0,3.1480488]
[1673203133529,0.66521892,16946.0,16945.0,2.8529788]
[1673203133742,0.66521892,16946.0,16945.0,3.1480388]
[1673203135254,0.66521892,16946.0,16945.0,3.1480488]
[1673203141965,0.66521892,16946.0,16945.0,3.1480388]
[1673203150152,0.66521892,16946.0,16945.0,3.1480488]
[1673203151278,0.66521892,16946.0,16945.0,3.1480388]
[1673203164207,1.03357792,16946.0,16945.0,3.1480388]
[1673203166436,1.03357792,16946.0,16945.0,2.8529788]
[1673203167932,0.66521892,16946.0,16945.0,2.8529788]
[1673203168878,1.03357792,16946.0,16945.0,2.8529788]
[1673203169884,0.66521892,16946.0,16945.0,3.1480488]
[1673203171771,1.03357792,16946.0,16945.0,3.1480488]
[1673203173894,0.66521892,16946.0,16945.0,3.1480488]
[1673203175129,1.03357792,16946.0,16945.0,3.1480488]
[1673203178282,1.03357792,16946.0,16945.0,2.8529788]
[1673203178490,1.03357792,16946.0,16945.0,3.1480488]
[1673203180209,1.03357792,16946.0,16945.0,2.8529788]
[1673203180666,1.03357792,16946.0,16945.0,2.38141162]
[1673203181156,1.03357792,16946.0,16945.0,2.85279942]
[1673203181605,1.03357792,16946.0,16945.0,2.38141162]
[1673203183077,1.03357792,16946.0,16945.0,2.85278963]
[1673203183526,1.03357792,16946.0,16945.0,2.85278969]
[1673203184561,1.03357792,16946.0,16945.0,2.85277305]
[1673203185262,1.03357792,16946.0,16945.0,2.38141162]
[1673203186535,1.03357792,16946.0,16945.0,2.85272687]
[1673203188719,0.66521892,16946.0,16945.0,2.85272687]
[1673203190581,0.66521892,16946.0,16945.0,2.85286584]
[1673203191352,0.66521892,16946.0,16945.0,3.14793584]
[1673203192781,0.66521892,16946.0,16945.0,3.14853274]
[1673203195589,0.66521892,16946.0,16945.0,3.14793584]
[1673203199637,1.03357792,16946.0,16945.0,3.14793584]
[1673203200135,1.03357792,16946.0,16945.0,2.67648162]
[1673203200880,1.03357792,16946.0,16945.0,3.14806677]
[1673203201362,1.03357792,16946.0,16945.0,3.13956677]
[1673203202358,1.03357792,16946.0,16945.0,2.84449677]
[1673203203615,1.03357792,16946.0,16945.0,2.85299677]
[1673203206122,1.03357792,16946.0,16945.0,3.14805677]
[1673203206618,1.03357792,16946.0,16945.0,3.14806677]
[1673203207081,0.66521892,16946.0,16945.0,3.14806677]
[1673203212501,1.10810194,16946.0,16945.0,3.14806677]
[1673203213289,1.47646094,16946.0,16945.0,3.14806677]
[1673203214294,1.47646334,16946.0,16945.0,3.14806677]
[1673203214545,1.03357792,16946.0,16945.0,3.14806677]
[1673203215313,1.03357792,16946.0,16945.0,3.14805677]
[1673203216322,0.66521892,16946.0,16945.0,3.14805677]
[1673203217083,1.10810056,16946.0,16945.0,3.14805677]
[1673203218787,1.47645956,16946.0,16945.0,3.14805677]
[1673203219565,1.10810056,16946.0,16945.0,3.14805677]
[1673203219813,1.10810056,16946.0,16945.0,3.14804677]
[1673203221858,1.47645956,16946.0,16945.0,3.14804677]
[1673203222551,1.47645956,16946.0,16945.0,2.85299677]
[1673203222807,1.47645956,16946.0,16945.0,3.14805677]
[1673203224563,1.4623691,16946.0,16945.0,3.14805677]
[1673203224809,1.8307281,16946.0,16945.0,3.14805677]
[1673203225800,1.47645956,16946.0,16945.0,3.14805677]
[1673203228817,1.10810056,16946.0,16945.0,3.14805677]
[1673203229354,1.47645956,16946.0,16945.0,3.14805677]
[1673203232158,1.47645956,16946.0,16945.0,2.85299677]
[1673203232493,1.47645956,16946.0,16945.0,3.14805677]
[1673203234269,1.47645956,16946.0,16945.0,2.85299677]
[1673203234520,1.47645956,16946.0,16945.0,3.14805677]
[1673203235042,1.47645956,16946.0,16945.0,2.85299677]
[1673203235353,1.47645956,16946.0,16945.0,3.14805677]
[1673203237113,1.47645956,16946.0,16945.0,2.85299677]
[1673203237398,1.47645956,16946.0,16945.0,3.14805677]
[1673203242113,1.03357792,16946.0,16945.0,3.14805677]
[1673203242867,1.03357792,16946.0,16945.0,2.85299677]
[1673203245129,1.03357792,16946.0,16945.0,2.85276604]
[1673203245645,0.66521892,16946.0,16945.0,2.85276604]
[1673203246384,1.03357792,16946.0,16945.0,2.85276604]
[1673203247073,0.66521892,16946.0,16945.0,2.85276604]
[1673203247810,1.03357792,16946.0,16945.0,2.85276604]
[1673203248579,0.66521892,16946.0,16945.0,2.85276604]
[1673203249053,1.03357792,16946.0,16945.0,2.85276604]
[1673203249312,0.66521892,16946.0,16945.0,2.85276604]
[1673203249810,1.03357792,16946.0,16945.0,2.85276604]
[1673203250066,0.66521892,16946.0,16945.0,2.85276604]
[1673203251966,1.10807017,16946.0,16945.0,2.85276604]
[1673203252456,1.47642917,16946.0,16945.0,3.14782604]
[1673203252686,1.10807017,16946.0,16945.0,3.14782604]
[1673203255101,1.47642917,16946.0,16945.0,3.14782604]
[1673203256827,1.03357792,16946.0,16945.0,3.14782604]
[1673203257078,1.03357792,16946.0,16945.0,3.14783604]
[1673203257336,0.66521892,16946.0,16945.0,3.14783604]
[1673203257864,0.66521892,16946.0,16945.0,3.17246251]
[1673203258774,1.10807167,16946.0,16945.0,3.17246251]
[1673203259005,1.47643067,16946.0,16945.0,3.17246251]
[1673203261392,1.10807167,16946.0,16945.0,3.17246251]
[1673203261806,1.47643067,16946.0,16945.0,3.17245251]
[1673203262058,1.03357792,16946.0,16945.0,3.17245251]
[1673203262556,0.66521892,16946.0,16945.0,2.87739251]
[1673203263043,1.10806868,16946.0,16945.0,2.87739251]
[1673203263291,0.66521892,16946.0,16945.0,2.87737731]
[1673203265585,1.03357792,16946.0,16945.0,2.87737731]
[1673203266570,1.10806821,16946.0,16945.0,2.87737731]
[1673203268114,1.47642721,16946.0,16945.0,2.87737731]
[1673203269671,1.10806821,16946.0,16945.0,2.87737731]
[1673203269919,1.47642721,16946.0,16945.0,2.87737731]
[1673203270433,1.10806821,16946.0,16945.0,2.87737731]
[1673203270924,1.47642721,16946.0,16945.0,2.87737731]
[1673203271178,1.10806821,16946.0,16945.0,2.87737731]
[1673203271695,1.10806821,16946.0,16945.0,3.17243731]
[1673203275843,1.10806821,16946.0,16945.0,3.06587798]
[1673203276576,1.46233726,16946.0,16945.0,3.06587798]
[1673203276866,1.46233726,16946.0,16945.0,3.17025798]
[1673203277145,1.46234236,16946.0,16945.0,3.17025798]
[1673203277677,1.10806821,16946.0,16945.0,3.17025798]
[1673203277931,1.10806821,16946.0,16945.0,3.06587798]
[1673203278463,1.47642721,16946.0,16945.0,3.06587798]
[1673203278730,1.47642721,16946.0,16945.0,2.77081798]
[1673203279460,1.47642721,16946.0,16945.0,3.06588798]
[1673203279719,1.47642721,16946.0,16945.0,2.87519798]
[1673203279978,1.10806821,16946.0,16945.0,3.17026798]
[1673203280433,1.47642721,16946.0,16945.0,3.17026798]
[1673203280651,1.10806821,16946.0,16945.0,3.17026798]
[1673203281109,1.47642721,16946.0,16945.0,3.17026798]
[1673203281361,1.10806821,16946.0,16945.0,3.17026798]
[1673203281616,1.47642721,16946.0,16945.0,3.17026798]
[1673203285346,1.47642721,16946.0,16945.0,3.17025798]
[1673203295684,1.47642721,16946.0,16945.0,3.17024798]
[1673203296723,1.47642721,16946.0,16945.0,2.87519798]
[1673203296975,1.47642721,16946.0,16945.0,3.17024798]
[1673203297750,1.10806821,16946.0,16945.0,3.17024798]
[1673203300049,1.10806821,16946.0,16945.0,3.17025798]
[1673203304671,1.10806821,16946.0,16945.0,3.06587798]
[1673203305472,1.47642721,16946.0,16945.0,3.06587798]
[1673203305740,1.47642721,16946.0,16945.0,3.16965578]
[1673203305963,1.47642721,16946.0,16945.0,2.40325656]
[1673203306488,1.03357792,16946.0,16945.0,2.40325656]
[1673203306699,1.03357792,16946.0,16945.0,2.29947876]
[1673203306954,1.03357792,16946.0,16945.0,2.77093384]
[1673203307212,0.66521892,16946.0,16945.0,2.77093384]
[1673203307448,1.10811536,16946.0,16945.0,2.77093384]
[1673203307705,0.66521892,16946.0,16945.0,2.77093384]
[1673203308660,0.66521892,16946.0,16945.0,2.87471164]
[1673203309394,0.66521892,16946.0,16945.0,3.16977164]
[1673203309621,0.66521892,16946.0,16945.0,2.87471164]
[1673203309873,0.66521892,16946.0,16945.0,3.06599384]
[1673203310738,0.66521892,16946.0,16945.0,2.77093384]
[1673203310966,0.66521892,16946.0,16945.0,3.06600384]
[1673203311633,1.03357792,16946.0,16945.0,3.06600384]
[1673203312112,1.03357792,16946.0,16945.0,2.77093384]
[1673203312362,1.03357792,16946.0,16945.0,3.06599384]
[1673203312663,0.66521892,16946.0,16945.0,3.06599384]
[1673203313777,0.66521892,16946.0,16945.0,3.16972591]
[1673203315674,1.1080774,16946.0,16945.0,3.06599384]
[1673203315928,1.03357792,16946.0,16945.0,3.06599384]
[1673203316680,1.03357792,16946.0,16945.0,2.87466591]
[1673203317200,1.03357792,16946.0,16945.0,3.16973591]
[1673203317697,1.03357792,16946.0,16945.0,3.06600384]
[1673203318689,1.03357792,16946.0,16945.0,3.1703555]
[1673203321370,1.03357792,16946.0,16945.0,3.1666605]
[1673203321633,1.03357792,16946.0,16945.0,2.69520542]
[1673203321854,1.03357792,16946.0,16945.0,2.40013542]
[1673203322920,1.03357792,16946.0,16945.0,2.29578376]
[1673203323675,1.03357792,16946.0,16945.0,2.40012893]
[1673203325318,1.03357792,16946.0,16945.0,2.87153274]
[1673203325575,0.66521892,16946.0,16945.0,2.87153274]
[1673203326328,0.66521892,16946.0,16945.0,2.40012893]
[1673203326589,1.03357792,16946.0,16945.0,2.40012893]
[1673203331144,1.62898963,16946.0,16945.0,1.29243817]
[1673203331640,1.26063063,16946.0,16945.0,1.29243817]
[1673203331893,1.62898963,16946.0,16945.0,1.29243817]
[1673203333997,1.26063063,16946.0,16945.0,1.29243817]
[1673203334236,1.62898963,16946.0,16945.0,1.29243817]
[1673203335177,1.26063063,16946.0,16945.0,1.29243817]
[1673203335432,1.62898963,16946.0,16945.0,1.29243817]
[1673203350703,2.15985801,16946.0,16945.0,1.29243817]
[1673203351988,2.15985801,16946.0,16945.0,1.29232893]
[1673203361808,2.15985801,16946.0,16945.0,1.18798376]
[1673203363767,2.15985801,16946.0,16945.0,1.30265176]
[1673203364735,2.15985801,16946.0,16945.0,1.18798376]
[1673203367983,2.25985801,16946.0,16945.0,1.18798376]
[1673203370061,2.25985801,16946.0,16945.0,1.08798376]
[1673203372683,2.25985801,16946.0,16945.0,1.20265176]
[1673203373398,2.25985801,16946.0,16945.0,1.10265176]
[1673203374773,2.25985801,16946.0,16945.0,0.98798376]
[1673203375835,1.89149901,16946.0,16945.0,0.98798376]
[1673203377801,1.89149901,16946.0,16945.0,1.10265176]
[1673203378936,1.79149901,16946.0,16945.0,1.00265176]
[1673203387305,2.15985801,16946.0,16945.0,1.00265176]
[1673203388586,2.15985801,16946.0,16945.0,0.41250776]
[1673203388854,1.62898963,16946.0,16945.0,0.41250776]
[1673203389848,1.90559813,16946.0,16945.0,0.41250776]
[1673203390364,1.62898963,16946.0,16945.0,0.41250776]
[1673203391885,1.62898963,16946.0,16945.0,0.29783976]
[1673203392672,2.16040869,16946.0,16945.0,0.29783976]
[1673203392906,2.16040869,16946.0,16945.0,0.41207544]
[1673203393905,2.16040869,16946.0,16945.0,0.29783976]
[1673203394467,2.4901591,16946.0,16945.0,0.29783976]
[1673203394632,1.95874004,16946.0,16945.0,0.29783976]
[1673203394941,1.95874004,16946.0,16945.0,0.41207544]
[1673203395536,1.62898963,16946.0,16945.0,0.41207544]
[1673203397108,2.13993223,16946.0,16945.0,0.41207544]
[1673203397346,1.62898963,16946.0,16945.0,0.12273568]
[1673203398081,1.79196818,16946.0,16945.0,0.12273568]
[1673203399344,2.16032718,16946.0,16945.0,0.12273568]
[1673203399598,2.49006944,16946.0,16945.0,0.12273568]
[1673203399858,2.49006944,16946.0,16944.0,1.09557977]
[1673203399859,0.57866645,16945.0,16944.0,1.09557977]
[1673203400111,2.62362832,16945.0,16943.0,6.13094826]
[1673203400389,1.0057987,16944.0,16943.0,6.13094826]
[1673203401733,1.53712273,16944.0,16943.0,4.75437847]
[1673203401991,1.53712273,16944.0,16943.0,4.77487847]
[1673203401992,1.55112273,16944.0,16943.0,4.77487847]
[1673203403304,1.0197987,16944.0,16943.0,4.77487847]
[1673203403585,1.55112273,16944.0,16943.0,4.77487847]
[1673203403873,1.0197987,16944.0,16943.0,4.77487847]
[1673203404282,1.64210767,16944.0,16943.0,4.77487847]
[1673203404890,2.1734317,16944.0,16943.0,4.77487847]
[1673203406151,2.68127084,16944.0,16943.0,4.77487847]
[1673203407076,2.1734317,16944.0,16943.0,4.77487847]
[1673203407819,2.68127084,16944.0,16943.0,4.77487847]
[1673203408312,2.1734317,16944.0,16943.0,4.77487847]
[1673203408567,2.68127084,16944.0,16943.0,4.77487847]
[1673203408774,2.1734317,16944.0,16943.0,4.77487847]
[1673203410803,2.28372519,16944.0,16943.0,4.77487847]
[1673203411563,2.79156433,16944.0,16943.0,4.77487847]
[1673203411819,1.75240116,16944.0,16943.0,4.77487847]
[1673203415805,2.28372519,16944.0,16943.0,4.77487847]
[1673203416829,1.75240116,16944.0,16943.0,4.77487847]
[1673203417339,2.28372519,16944.0,16943.0,4.77487847]
[1673203417786,1.75240116,16944.0,16943.0,4.77487847]
[1673203420602,2.79156433,16944.0,16943.0,4.77487847]
[1673203420884,2.79156433,16944.0,16943.0,3.61173506]
[1673203422408,2.68127084,16944.0,16943.0,3.61173506]
[1673203426271,2.1734317,16944.0,16943.0,3.61173506]
[1673203428033,2.68633656,16944.0,16943.0,3.61173506]
[1673203428280,2.1734317,16944.0,16943.0,3.61173506]
[1673203428568,2.68633656,16944.0,16943.0,3.61173506]
[1673203429280,3.07300362,16944.0,16943.0,3.61173506]
[1673203429538,2.56009876,16944.0,16943.0,3.61173506]
[1673203430171,3.07300362,16944.0,16943.0,3.61173506]
[1673203430427,2.56009876,16944.0,16943.0,3.61173506]
[1673203434589,3.07300362,16944.0,16943.0,3.61173506]
[1673203435864,3.34983394,16944.0,16943.0,3.61173506]
[1673203436132,2.54167959,16944.0,16943.0,3.61173506]
[1673203436652,3.6631081,16944.0,16943.0,3.61173506]
[1673203436896,2.55382292,16944.0,16943.0,3.61173506]
[1673203437144,3.06672778,16944.0,16943.0,3.61173506]
[1673203437648,2.55382292,16944.0,16943.0,3.61173506]
[1673203440182,3.15020324,16944.0,16943.0,3.61173506]
[1673203440697,3.15020324,16944.0,16943.0,2.44854877]
[1673203440698,3.27644104,16944.0,16943.0,2.44854877]
[1673203444513,3.26244104,16944.0,16943.0,2.43654877]
[1673203445033,3.29144104,16944.0,16943.0,2.43854877]
[1673203448614,2.77853618,16944.0,16943.0,2.43854877]
[1673203448829,3.2965573,16944.0,16943.0,2.43854877]
[1673203449528,3.66106659,16944.0,16943.0,2.43854877]
[1673203453773,4.69542432,16944.0,16943.0,1.03409009]
[1673203454036,4.47811117,16944.0,16943.0,1.04259009]
[1673203454288,3.66995682,16944.0,16943.0,1.03409009]
[1673203459637,4.32609129,16944.0,16943.0,1.03409009]
[1673203459903,4.47811117,16944.0,16943.0,1.03409009]
[1673203460177,3.66995682,16944.0,16943.0,1.03409009]
[1673203460433,4.16080667,16944.0,16943.0,1.03409009]
[1673203460687,4.98493989,16944.0,16943.0,1.03409009]
[1673203460960,4.77388242,16944.0,16943.0,0.38632473]
[1673203461439,5.58203677,16944.0,16943.0,0.38632473]
[1673203462477,5.07520805,16944.0,16943.0,0.38632473]
[1673203462728,4.2670537,16944.0,16943.0,0.38632473]
[1673203463492,3.66995682,16944.0,16943.0,0.38632473]
[1673203463977,3.66995682,16944.0,16943.0,0.14328064]
[1673203464501,3.49645682,16944.0,16943.0,0.14328064]
[1673203464752,3.75907563,16944.0,16943.0,0.14328064]
[1673203471268,4.05907563,16944.0,16943.0,0.14328064]
[1673203471518,3.75907563,16944.0,16943.0,0.14328064]
[1673203473053,4.05907563,16944.0,16943.0,0.14328064]
[1673203473552,3.75907563,16944.0,16943.0,0.04465162]
[1673203474044,3.75907563,16944.0,16943.0,0.01938061]
[1673203474288,4.30817563,16944.0,16943.0,0.01938061]
[1673203474511,4.60817563,16944.0,16943.0,0.01938061]
[1673203474723,5.41632998,16944.0,16943.0,0.01938061]
[1673203479033,6.03722998,16944.0,16943.0,0.01938061]
[1673203481052,5.73722998,16944.0,16943.0,0.0128672]
[1673203481566,5.73722998,16944.0,16943.0,0.00428323]
[1673203481836,6.03722998,16944.0,16943.0,0.00428323]
[1673203483361,5.73722998,16944.0,16943.0,0.00428323]
[1673203483865,6.03722998,16944.0,16943.0,0.00190834]
[1673203484349,5.73722998,16944.0,16943.0,0.00190834]
[1673203484846,6.03722998,16944.0,16943.0,0.00190834]
[1673203485329,5.73722998,16944.0,16943.0,0.00190834]
[1673203485590,6.03722998,16944.0,16943.0,0.00190834]
[1673203485838,5.73732998,16944.0,16943.0,0.00190834]
[1673203486094,5.47471117,16944.0,16943.0,0.00190834]
[1673203486360,5.77471117,16944.0,16943.0,0.00190834]
[1673203486859,0.6,16943.0,16939.0,0.63961847]
[1673203487110,0.53049388,16940.0,16939.0,0.18192172]
[1673203487368,1.13653077,16940.0,16939.0,0.19042172]
[1673203487622,1.53629258,16940.0,16939.0,0.19042172]
[1673203489640,1.55229258,16940.0,16939.0,0.19242172]
[1673203492898,1.87645255,16940.0,16939.0,0.19242172]
[1673203493163,1.55229258,16940.0,16939.0,0.19242172]
[1673203498308,2.18645154,16940.0,16939.0,0.19242172]
[1673203501193,2.18091354,16940.0,16939.0,0.19242172]
[1673203503726,2.18091354,16940.0,16939.0,0.11829512]
[1673203522947,2.78091354,16940.0,16939.0,0.11822614]
[1673203523203,2.18091354,16940.0,16939.0,0.11822614]
[1673203526952,1.81809254,16940.0,16939.0,0.11822614]
[1673203530915,2.18645154,16940.0,16939.0,0.11822614]
[1673203531390,1.81809254,16940.0,16939.0,0.11822614]
[1673203532210,2.18645154,16940.0,16939.0,0.11822614]
[1673203532388,1.81809254,16940.0,16939.0,0.11822614]
[1673203533567,1.80209254,16940.0,16939.0,0.11622614]
[1673203533794,1.82609254,16940.0,16939.0,0.11722614]
[1673203538191,2.19445154,16940.0,16939.0,0.11722614]
[1673203538921,1.82609254,16940.0,16939.0,0.11722614]
[1673203540697,2.19445154,16940.0,16939.0,0.11722614]
[1673203541983,1.82609254,16940.0,16939.0,0.11722614]
[1673203543180,1.82609254,16940.0,16939.0,0.11716186]
[1673203543923,1.82609254,16940.0,16939.0,0.48552086]
[1673203544165,1.82609254,16940.0,16939.0,0.11716186]
[1673203550002,2.35128498,16940.0,16939.0,0.11716186]
[1673203550258,2.19445154,16940.0,16939.0,0.11716186]
[1673203562467,2.59163786,16940.0,16939.0,0.11716186]
[1673203564185,2.19445154,16940.0,16939.0,0.11716186]
[1673203565130,2.71964398,16940.0,16939.0,0.11709557]
[1673203565613,2.32165154,16940.0,16939.0,0.11709557]
[1673203571798,2.84684398,16940.0,16939.0,0.11709557]
[1673203573338,2.32165154,16940.0,16939.0,0.11709557]
[1673203573587,2.3163501,16940.0,16939.0,0.11709557]
[1673203573873,2.80707185,16940.0,16939.0,0.11709557]
[1673203577700,2.9163501,16940.0,16939.0,0.09583823]
[1673203578456,3.5066681,16940.0,16939.0,0.09583823]
[1673203578968,4.31482245,16940.0,16939.0,0.09583823]
[1673203581860,3.18963001,16940.0,16939.0,0.09583823]
[1673203582110,2.01311666,16940.0,16939.0,0.09583823]
[1673203582598,2.54453906,16940.0,16939.0,0.09583823]
[1673203588646,2.01311666,16940.0,16939.0,0.09583823]
[1673203589078,2.33314069,16940.0,16939.0,0.09583823]
[1673203589562,2.01311666,16940.0,16939.0,0.09583823]
[1673203590146,2.61311666,16940.0,16939.0,0.01583823]
[1673203592975,2.01311666,16940.0,16939.0,0.01583823]
[1673203594739,2.54468719,16940.0,16939.0,0.01583823]
[1673203594989,2.01311666,16940.0,16939.0,0.01583823]
[1673203596234,2.08019938,16940.0,16939.0,0.01583823]
[1673203596984,2.01311666,16940.0,16939.0,0.01583823]
[1673203608144,2.01311666,16940.0,16939.0,0.01083823]